Workbook

Sheet Ambient Data
A1: Appendix 2: Location of algal rock scrape results for area, chlorophyll a, and ash free dry mass data, and nutrients in the upper, middle, and lower protions of the Delaware River, 2009.
A2: [USGS, U.S. Geological Survey; in2, inches2; mm2, square millimeter; g, grams; μg/g, micrograms per gram; μg/mm2, micrograms per square millimeter; mg/l, milligrams per liter; NA, not applicable; n/a, not analyzed; leaked, sampled leaked and analysis couldn't be completed]
A3: USGS station number | B3: USGS station name | C3: Location | D3: Date | E3: Time | F3: River mile | G3: Elevation (Feet) | H3: Array location | I3: Sample type | J3: Periphyton habitat | K3: Periphyton sampling method | L3: Rock scrape 1 area (in2) | M3: Rock scrape 2 area (in2) | N3: Rock scrape 3 area (in2) | O3: Rock scrape area total (in2) | P3: Rock scrape total area (mm2) | Q3: Subsample wet weight (g) | R3: Subsample dry weight (g) | S3: Subsample ash weight (g) | T3: Ash free dry mass (g) | U3: Total wet weight (g) | V3: Chlorophyll a average (μg/g wet weight) | W3: Chlorophyll a (μg/mm2) | X3: Percent observed mass ((g Ash free dry mass/g dry) x 100) | Y3: Soluble reactive phosphorus (mg/L) | Z3: Total phosphorus (mg/L) | AA3: Nitrate and nitrite as nitrogen (mg/L) | AB3: Ammonia as nitrogen (mg/L) | AC3: Total kjeldahl nitrogen (mg/L) | AD3: Total nitrogen (mg/L) | AE3: Comments
A4: 01427725 | B4: Delaware River near Milanville, Pa. | C4: Upper | D4: 2009-08-26 | E4: 0940 | F4: 293.5 | G4: 679 | H4: 1 (near Pa. shore) | I4: Richest Target Habitat | J4: Epilithic | K4: Top-Rock Scrape | L4: 18.86 | M4: 11.87 | N4: 9.07 | O4: =L4+M4+N4 -> 39.8 | P4: =O4*645.16 -> 25677.368 | Q4: 0.195 | R4: 0.0365 | S4: 0.0268 | T4: 0.0097 | U4: 1.9929 | V4: 148.5113643 | W4: =(V4*U4)/P4 -> 0.01152642662 | X4: 26.57534247 | Y4: 0.0065 | Z4: NA | AA4: 0.1812 | AB4: 0.0085 | AD4: NA
A5: 01427725 | B5: Delaware River near Milanville, Pa. | C5: Upper | D5: 2009-08-26 | E5: 0945 | F5: 293.5 | G5: 679 | H5: 2 (near island) | I5: Richest Target Habitat | J5: Epilithic | K5: Top-Rock Scrape | L5: 16.8 | M5: 14.3 | N5: 18.5 | O5: =L5+M5+N5 -> 49.6 | P5: 31999.936 | Q5: 0.4405 | R5: 0.1224 | S5: 0.0971 | T5: 0.0253 | U5: 3.0552 | V5: 161.9631423 | W5: =(V5*U5)/P5 -> 0.01546346194 | X5: 22.45179063 | Y5: 0.006 | Z5: NA | AA5: 0.1785 | AB5: 0.0092 | AD5: NA
A6: 01427725 | B6: Delaware River near Milanville, Pa. | C6: Upper | D6: 2009-08-26 | E6: 0950 | F6: 293.5 | G6: 679 | H6: 3 (mid-channel) | I6: Richest Target Habitat | J6: Epilithic | K6: Top-Rock Scrape | L6: 15.54 | M6: 10.01 | N6: 17.07 | O6: 42.62 | P6: 27496.7192 | Q6: 0.2974 | R6: 0.0726 | S6: 0.0563 | T6: 0.0163 | U6: 2.207 | V6: 193.7870291 | W6: 0.01555414558 | X6: 20.66993464 | Y6: 0.006 | Z6: NA | AA6: 0.1867 | AB6: 0.0092 | AD6: NA
A7: 01427725 | B7: Delaware River near Milanville, Pa. | C7: Upper | D7: 2009-09-09 | E7: 1500 | F7: 293.5 | G7: 679 | H7: 1 (near Pa. shore) | I7: Richest Target Habitat | J7: Epilithic | K7: Top-Rock Scrape | L7: 14.31 | M7: 12.36 | N7: 10.82 | O7: 37.49 | P7: 24187.0484 | Q7: 0.353 | R7: 0.0475 | S7: 0.0236 | T7: 0.0239 | U7: 2.3915 | V7: 148.3 | W7: 0.01466319677 | X7: 50.3 | Y7: 0.0028 | Z7: 0.0065 | AA7: 0.1479 | AB7: 0.0056 | AC7: 0.1263 | AD7: 0.2742
A8: 01427725 | B8: Delaware River near Milanville, Pa. | C8: Upper | D8: 2009-09-09 | E8: duplicate of 1500 | F8: 293.5 | G8: 679 | H8: 1 (near Pa. shore) | I8: Richest Target Habitat | J8: Epilithic | K8: Top-Rock Scrape | L8: 14.31 | M8: 12.36 | N8: 10.82 | O8: =L8+M8+N8 -> 37.49 | P8: =O8*645.16 -> 24187.0484 | Q8: 0.351 | R8: 0.0512 | S8: 0.0283 | T8: 0.0229 | V8: n/a | X8: 44.7
A9: 01427725 | B9: Delaware River near Milanville, Pa. | C9: Upper | D9: 2009-09-09 | E9: 1505 | F9: 293.5 | G9: 679 | H9: 2 (near island) | I9: Richest Target Habitat | J9: Epilithic | K9: Top-Rock Scrape | L9: 10.88 | M9: 12.89 | N9: 11.31 | O9: =L9+M9+N9 -> 35.08 | P9: 22632.2128 | Q9: 0.5362 | R9: 0.0982 | S9: 0.0669 | T9: 0.0313 | U9: 2.0913 | V9: 140.1992976 | W9: 0.01295493259 | X9: 31.87372709 | Y9: 0.0024 | Z9: 0.0046 | AA9: 0.1468 | AB9: 0.0062 | AC9: 0.1369 | AD9: 0.2837
A10: 01427725 | B10: Delaware River near Milanville, Pa. | C10: Upper | D10: 2009-09-09 | E10: 1510 | F10: 293.5 | G10: 679 | H10: 3 (mid-channel) | I10: Richest Target Habitat | J10: Epilithic | K10: Top-Rock Scrape | L10: 15.65 | M10: 14.21 | N10: 12.58 | O10: 42.44 | P10: 27380.5904 | Q10: 0.3566 | R10: 0.0596 | S10: 0.0386 | T10: 0.021 | U10: 3.5698 | V10: 130.6217169 | W10: 0.01703007123 | X10: 35.23489933 | Y10: 0.0025 | Z10: 0.0047 | AA10: 0.1491 | AB10: 0.0059 | AC10: 0.1228 | AD10: 0.2719
A11: 01439250 | B11: Delaware River near Egypt Mills, Pa. | C11: Middle | D11: 2009-07-29 | E11: 1100 | F11: 233.6 | G11: 321 | H11: 1 (downstream) | I11: Richest Target Habitat | J11: Epilithic | K11: Top-Rock Scrape | L11: 13.04 | M11: 13.28 | N11: 11.53 | O11: 37.85 | P11: 24419.306 | Q11: 0.3101 | R11: 0.0437 | S11: 0.0191 | T11: 0.0246 | U11: 2.1042 | V11: 131.6386393 | W11: 0.01134323902 | X11: 56.29290618 | Y11: 0.0072 | Z11: NA | AA11: 0.157 | AD11: NA | AE11: Before flooding
A12: 01439250 | B12: Delaware River near Egypt Mills, Pa. | C12: Middle | D12: 2009-07-29 | E12: 1105 | F12: 233.6 | G12: 321 | H12: 2 (mid transect) | I12: Richest Target Habitat | J12: Epilithic | K12: Top-Rock Scrape | L12: 15.04 | M12: 10.86 | N12: 11.56 | O12: 37.46 | P12: 24167.6936 | Q12: 0.2581 | R12: 0.0273 | S12: 0.0112 | T12: 0.0161 | U12: 1.2666 | V12: 164.0630209 | W12: 0.008598347269 | X12: 58.97435897 | Y12: leaked | Z12: NA | AA12: leaked | AD12: NA | AE12: Before flooding
A13: 01439250 | B13: Delaware River near Egypt Mills, Pa. | C13: Middle | D13: 2009-07-29 | E13: 1110 | F13: 233.6 | G13: 321 | H13: 3 (upstream) | I13: Richest Target Habitat | J13: Epilithic | K13: Top-Rock Scrape | L13: 12.73 | M13: 10.37 | N13: 7.63 | O13: 30.73 | P13: 19825.7668 | Q13: 0.314 | R13: 0.0736 | S13: 0.0548 | T13: 0.0188 | U13: 2.1528 | V13: 160.3711072 | W13: 0.01741405128 | X13: 25.54347826 | Y13: 0.0062 | Z13: NA | AA13: 0.1564 | AD13: NA | AE13: Before flooding
A14: 01439250 | B14: Delaware River near Egypt Mills, Pa. | C14: Middle | D14: 2009-09-08 | E14: 1300 | F14: 233.6 | G14: 321 | H14: 1 (downstream) | I14: Richest Target Habitat | J14: Epilithic | K14: Top-Rock Scrape | L14: 11.77 | M14: 20.99 | N14: 9.73 | O14: 42.49 | P14: 27412.8484 | Q14: 0.6811 | R14: 0.1259 | S14: 0.0816 | T14: 0.0443 | U14: 4.2579 | V14: 387.0436493 | W14: 0.06011754525 | X14: 35.18665608 | Y14: 0.0034 | Z14: 0.0065 | AA14: 0.0628 | AB14: 0.0044 | AC14: 0.1456 | AD14: 0.2084
A15: 01439250 | B15: Delaware River near Egypt Mills, Pa. | C15: Middle | D15: 2009-09-08 | E15: 1310 | F15: 233.6 | G15: 321 | H15: 2 (mid transect) | I15: Richest Target Habitat | J15: Epilithic | K15: Top-Rock Scrape | L15: 10.37 | M15: 11.08 | N15: 10.99 | O15: 32.44 | P15: 20928.9904 | Q15: 0.8271 | R15: 0.1371 | S15: 0.0825 | T15: 0.0546 | U15: 3.3903 | V15: 301.4050244 | W15: 0.04882478489 | X15: 39.8249453 | Y15: 0.0036 | Z15: 0.0069 | AA15: 0.0622 | AB15: 0.0049 | AC15: 0.1334 | AD15: 0.1956
A16: 01439250 | B16: Delaware River near Egypt Mills, Pa. | C16: Middle | D16: 2009-09-08 | E16: 1315 | F16: 233.6 | G16: 321 | H16: 3 (upstream) | I16: Richest Target Habitat | J16: Epilithic | K16: Top-Rock Scrape | L16: 7.3 | M16: 16.38 | N16: 8.27 | O16: 31.95 | P16: 20612.862 | Q16: 0.7541 | R16: 0.1694 | S16: 0.1336 | T16: 0.0358 | U16: 5.3319 | V16: 287.8986586 | W16: 0.07447034079 | X16: 21.13341204 | Y16: 0.0037 | Z16: 0.0069 | AA16: 0.0634 | AB16: 0.004 | AC16: 0.1307 | AD16: 0.1941
A17: 01439250 | B17: Delaware River near Egypt Mills, Pa. | C17: Middle | D17: 2009-09-22 | E17: 1240 | F17: 233.6 | G17: 321 | H17: 1 (downstream) | I17: Richest Target Habitat | J17: Epilithic | K17: Top-Rock Scrape | L17: 6.66 | M17: 14.74 | N17: 9.36 | O17: 30.76 | P17: 19845.1216 | Q17: 0.792 | R17: 0.1512 | S17: 0.1005 | T17: 0.0507 | U17: 4.8971 | V17: 350.5809315 | W17: 0.08651143158 | X17: 33.53174603 | Y17: 0.002 | Z17: 0.0045 | AA17: 0.0703 | AB17: 0.0082 | AC17: 0.2105 | AD17: 0.2808
A18: 01439250 | B18: Delaware River near Egypt Mills, Pa. | C18: Middle | D18: 2009-09-22 | E18: 1340 | F18: 233.6 | G18: 321 | H18: 2 (mid transect) | I18: Richest Target Habitat | J18: Epilithic | K18: Top-Rock Scrape | L18: 7.93 | M18: 5.52 | N18: 11.83 | O18: 25.28 | P18: 16309.6448 | Q18: 0.839 | R18: 0.1435 | S18: 0.0963 | T18: 0.0472 | U18: 4.3661 | V18: 246.9049354 | W18: 0.06609657363 | X18: 32.89198606 | Y18: 0.0021 | Z18: 0.0067 | AA18: 0.0676 | AB18: 0.0095 | AC18: 0.1772 | AD18: 0.2448
A19: 01439250 | B19: Delaware River near Egypt Mills, Pa. | C19: Middle | D19: 2009-09-22 | E19: 1420 | F19: 233.6 | G19: 321 | H19: 3 (upstream) | I19: Richest Target Habitat | J19: Epilithic | K19: Top-Rock Scrape | L19: 12.37 | M19: 8.87 | N19: 6.42 | O19: 27.66 | P19: 17845.1256 | Q19: 0.7735 | R19: 0.1369 | S19: 0.0995 | T19: 0.0374 | U19: 3.9413 | V19: 280.9141105 | W19: 0.06204309281 | X19: 27.3192111 | Y19: 0.0018 | Z19: 0.0071 | AA19: 0.0687 | AB19: 0.007 | AC19: 0.2262 | AD19: 0.2949
A20: 01458200 | B20: Delaware River near Upper Black Eddy, Pa. | C20: Lower | D20: 2009-07-28 | E20: 1040 | F20: 166.6 | G20: 109 | H20: 1 (near island) | I20: Richest Target Habitat | J20: Epilithic | K20: Top-Rock Scrape | L20: 12.92 | M20: 10.23 | N20: 9.76 | O20: 32.91 | P20: 21232.2156 | Q20: 0.2442 | R20: 0.0529 | S20: 0.0381 | T20: 0.0148 | U20: 2.2197 | V20: 263.7476325 | W20: 0.0275732232 | X20: 28 | Y20: 0.0393 | Z20: NA | AA20: 0.837 | AD20: NA | AE20: Before flooding
A21: 01458200 | B21: Delaware River near Upper Black Eddy, Pa. | C21: Lower | D21: 2009-07-28 | E21: 1045 | F21: 166.6 | G21: 109 | H21: 2 (mid channel) | I21: Richest Target Habitat | J21: Epilithic | K21: Top-Rock Scrape | L21: 18.05 | M21: 9.5 | N21: 16.3 | O21: 43.85 | P21: 28290.266 | Q21: 0.5875 | R21: 0.1079 | S21: 0.0659 | T21: 0.042 | U21: 4.4687 | V21: 435.5850793 | W21: 0.06880455078 | X21: 38.9 | Y21: 0.0392 | Z21: NA | AA21: 0.8338 | AD21: NA | AE21: Before flooding
A22: 01458200 | B22: Delaware River near Upper Black Eddy, Pa. | C22: Lower | D22: 2009-07-28 | E22: 1050 | F22: 166.6 | G22: 109 | H22: 3 (near Pa. shore) | I22: Richest Target Habitat | J22: Epilithic | K22: Top-Rock Scrape | L22: 14.08 | M22: 13.3 | N22: 8.53 | O22: =L22+M22+N22 -> 35.91 | P22: 23167.6956 | Q22: 0.429 | R22: 0.0629 | S22: 0.0386 | T22: 0.0243 | U22: 2.549 | V22: 296.3168367 | W22: 0.03260193114 | X22: 38.6 | Y22: 0.0389 | Z22: NA | AA22: 0.8321 | AD22: NA | AE22: Before flooding
A23: 01458200 | B23: Delaware River near Upper Black Eddy, Pa. | C23: Lower | D23: 2009-09-10 | E23: 1030 | F23: 166.6 | G23: 109 | H23: 1 (near island) | I23: Richest Target Habitat | J23: Epilithic | K23: Top-Rock Scrape | L23: 14.68 | M23: 14.01 | N23: 16.94 | O23: 45.63 | P23: 29438.6508 | Q23: 0.4959 | R23: 0.0792 | S23: 0.0372 | T23: 0.042 | U23: 6.3056 | V23: 963.2452539 | W23: 0.2063219308 | X23: 53.03030303 | Y23: 0.0371 | Z23: 0.0459 | AA23: 0.8504 | AB23: 0.0041 | AC23: 0.2236 | AD23: 1.074
A24: 01458200 | B24: Delaware River near Upper Black Eddy, Pa. | C24: Lower | D24: 2009-09-10 | E24: 1035 | F24: 166.6 | G24: 109 | H24: 2 (mid channel) | I24: Richest Target Habitat | J24: Epilithic | K24: Top-Rock Scrape | L24: 10.14 | M24: 9.59 | N24: 11.93 | O24: 31.66 | P24: 20425.7656 | Q24: 0.5304 | R24: 0.0905 | S24: 0.0526 | T24: 0.0379 | U24: 5.1005 | V24: 598.4527553 | W24: 0.1494391123 | X24: 41.87845304 | Y24: 0.0371 | Z24: 0.0447 | AA24: 0.842 | AB24: 0.0029 | AC24: 0.2271 | AD24: 1.0691
A25: 01458200 | B25: Delaware River near Upper Black Eddy, Pa. | C25: Lower | D25: 2009-09-10 | E25: 1040 | F25: 166.6 | G25: 109 | H25: 3 (near Pa. shore) | I25: Richest Target Habitat | J25: Epilithic | K25: Top-Rock Scrape | L25: 12.6 | M25: 8.96 | N25: 8.92 | O25: 30.48 | P25: 19664.4768 | Q25: 0.6655 | R25: 0.0671 | S25: 0.0379 | T25: 0.0292 | U25: 4.9982 | V25: 475.6216698 | W25: 0.1208906931 | X25: 43.5171386 | Y25: 0.0369 | Z25: 0.0462 | AA25: 0.8358 | AB25: 0.0015 | AC25: 0.2411 | AD25: 1.0769
A26: 01458200 | B26: Delaware River near Upper Black Eddy, Pa. | C26: Lower | D26: 2009-09-23 | E26: 1120 | F26: 166.6 | G26: 109 | H26: 1 (near island) | I26: Richest Target Habitat | J26: Epilithic | K26: Top-Rock Scrape | L26: 10.41 | M26: 8.4 | N26: 11.49 | O26: =L26+M26+N26 -> 30.3 | P26: 19548.348 | Q26: 0.676 | R26: 0.1194 | S26: 0.0814 | T26: 0.038 | U26: 2.9781 | V26: 507.8108478 | W26: 0.07736262347 | X26: 31.82579564 | Y26: 0.0341 | Z26: 0.0428 | AA26: 0.9209 | AB26: 0.0095 | AC26: 0.2385 | AD26: 1.1594
A27: 01458200 | B27: Delaware River near Upper Black Eddy, Pa. | C27: Lower | D27: 2009-09-23 | E27: 1200 | F27: 166.6 | G27: 109 | H27: 2 (mid channel) | I27: Richest Target Habitat | J27: Epilithic | K27: Top-Rock Scrape | L27: 13.34 | M27: 8.31 | N27: 11.12 | O27: 32.77 | P27: 21141.8932 | Q27: 0.5549 | R27: 0.0903 | S27: 0.0643 | T27: 0.026 | U27: 4.5725 | V27: 502.1657253 | W27: 0.1086067722 | X27: 28.79291251 | Y27: 0.0336 | Z27: 0.0428 | AA27: 0.9277 | AB27: 0.01 | AC27: 0.2227 | AD27: 1.1504
A28: 01458200 | B28: Delaware River near Upper Black Eddy, Pa. | C28: Lower | D28: 2009-09-23 | E28: 1210 | F28: 166.6 | G28: 109 | H28: 3 (near Pa. shore) | I28: Richest Target Habitat | J28: Epilithic | K28: Top-Rock Scrape | L28: 13.86 | M28: 19.98 | N28: 7.92 | O28: =L28+M28+N28 -> 41.76 | P28: =O28*645.16 -> 26941.8816 | Q28: 0.7083 | R28: 0.101 | S28: 0.0622 | T28: 0.0388 | U28: 7.8942 | V28: 524.7016411 | W28: 0.1537420347 | X28: 38.41584158 | Y28: 0.0351 | Z28: 0.0433 | AA28: 0.9225 | AB28: 0.0115 | AC28: 0.2078 | AD28: 1.1303
A29: 01458200 | B29: Delaware River near Upper Black Eddy, Pa. | C29: Lower | D29: 2009-09-23 | E29: duplicate of 1210 | F29: 166.6 | G29: 109 | H29: 3 (near Pa. shore) | I29: Richest Target Habitat | J29: Epilithic | K29: Top-Rock Scrape | L29: 13.86 | M29: 19.98 | N29: 7.92 | O29: =L29+M29+N29 -> 41.76 | P29: =O29*645.16 -> 26941.8816 | Q29: 1.0732 | R29: 0.1429 | S29: 0.0909 | T29: 0.052 | V29: 575.4930473 | X29: 36.4

Sheet Upper
A1: Appendix 2: Location of algal rock scrape results for area, chlorophyll a, and ash free dry mass data, and nutrients in the upper, middle, and lower protions of the Delaware River, 2009.
A2: [mg/L, milligrams per liter; μg, micrograms; μg/mm2, micrograms per square millimeter; ****, sample analyzed for chlorophyll a instead of Ash free dry mass; filter area is 490mm2]
A3: Date | B3: River mile | C3: Array location | D3: Treatment | E3: Sample type | F3: Soluble reactive phosphorus (mg/L) | G3: Nitrate and nitrite as nitrogen (mg/L) | H3: Chlorophyll a (μg/filter) | I3: Chlorophyll a (μg/mm2) | J3: Ash free dry mass (μg/filter) | K3: Ash free dry mass (μg/mm2)
A4: 2009-09-09 | B4: 293.5 | C4: 1 (near Pa. shore) | D4: Control | E4: chlorophyll a | F4: 0.0061 | G4: 0.027 | H4: 5.277044984 | I4: 0.011
A5: 2009-09-09 | B5: 293.5 | C5: 1 (near Pa. shore) | D5: Nitrogen | E5: chlorophyll a | F5: 0.0094 | G5: 7.261 | H5: 4.860874244 | I5: 0.01
A6: 2009-09-09 | B6: 293.5 | C6: 1 (near Pa. shore) | D6: Phosphorus | E6: chlorophyll a | F6: 7.1782 | G6: 0.0086 | H6: 19.07726672 | I6: 0.039
A7: 2009-09-09 | B7: 293.5 | C7: 1 (near Pa. shore) | D7: Nitrogen and phosphorus | E7: chlorophyll a | F7: 7.4217 | G7: 6.5267 | H7: 24.63730781 | I7: 0.05
A8: 2009-09-09 | B8: 293.5 | C8: 1 (near Pa. shore) | D8: Control | E8: Ash free dry mass | F8: 0.0079 | G8: 0.0132 | J8: 1 | K8: 0.002
A9: 2009-09-09 | B9: 293.5 | C9: 1 (near Pa. shore) | D9: Nitrogen | E9: Ash free dry mass | F9: 0.0059 | G9: 7.1407 | J9: 1.1 | K9: 0.002
A10: 2009-09-09 | B10: 293.5 | C10: 1 (near Pa. shore) | D10: Phosphorus | E10: Ash free dry mass | F10: 7.2188 | G10: 0.0091 | J10: 1.8 | K10: 0.004
A11: 2009-09-09 | B11: 293.5 | C11: 1 (near Pa. shore) | D11: Nitrogen and phosphorus | E11: Ash free dry mass | F11: 6.8536 | G11: 4.662 | J11: 2.2 | K11: 0.004
A12: 2009-09-09 | B12: 293.5 | C12: 1 (near Pa. shore) | D12: Control | E12: TAXA | F12: 0.0077 | G12: 0.023
A13: 2009-09-09 | B13: 293.5 | C13: 1 (near Pa. shore) | D13: Nitrogen | E13: TAXA | F13: 0.0073 | G13: 6.1112
A14: 2009-09-09 | B14: 293.5 | C14: 1 (near Pa. shore) | D14: Phosphorus | E14: TAXA | F14: 6.7724 | G14: 0.0063
A15: 2009-09-09 | B15: 293.5 | C15: 1 (near Pa. shore) | D15: Nitrogen and phosphorus | E15: TAXA | F15: 6.4478 | G15: 0.0091
A16: 2009-09-09 | B16: 293.5 | C16: 2 (near island) | D16: Control | E16: chlorophyll a | F16: 0.0076 | G16: 0.027 | H16: 6.575497693 | I16: 0.013
A17: 2009-09-09 | B17: 293.5 | C17: 2 (near island) | D17: Nitrogen | E17: chlorophyll a | F17: 0.0076 | G17: 7.7438 | H17: 6.592144522 | I17: 0.013
A18: 2009-09-09 | B18: 293.5 | C18: 2 (near island) | D18: Phosphorus | E18: chlorophyll a | F18: 7.9492 | G18: 0.0091 | H18: 19.02732623 | I18: 0.039
A19: 2009-09-09 | B19: 293.5 | C19: 2 (near island) | D19: Nitrogen and phosphorus | E19: chlorophyll a | F19: 7.0971 | G19: 5.1487 | H19: 20.77524334 | I19: 0.042
A20: 2009-09-09 | B20: 293.5 | C20: 2 (near island) | D20: Control | E20: Ash free dry mass | F20: 0.0076 | G20: 0.0374 | J20: 0.5 | K20: 0.001
A21: 2009-09-09 | B21: 293.5 | C21: 2 (near island) | D21: Nitrogen | E21: Ash free dry mass | F21: 0.0105 | G21: 6.5927 | J21: 0.9 | K21: 0.002
A22: 2009-09-09 | B22: 293.5 | C22: 2 (near island) | D22: Phosphorus | E22: Ash free dry mass | F22: 6.7576 | G22: 0.0074 | J22: 0.7 | K22: 0.001
A23: 2009-09-09 | B23: 293.5 | C23: 2 (near island) | D23: Nitrogen and phosphorus | E23: Ash free dry mass | F23: 7.6194 | G23: 6.8368 | H23: 17.8 | I23: 0.036 | J23: ****
A24: 2009-09-09 | B24: 293.5 | C24: 2 (near island) | D24: Control | E24: TAXA | F24: 5.9956 | G24: 0.0057
A25: 2009-09-09 | B25: 293.5 | C25: 2 (near island) | D25: Nitrogen | E25: TAXA | F25: 0.0111 | G25: 6.5652
A26: 2009-09-09 | B26: 293.5 | C26: 2 (near island) | D26: Phosphorus | E26: TAXA | F26: 0.009 | G26: 0.0224
A27: 2009-09-09 | B27: 293.5 | C27: 2 (near island) | D27: Nitrogen and phosphorus | E27: TAXA | F27: 5.9656 | G27: 5.7829
A28: 2009-09-09 | B28: 293.5 | C28: 3 (mid-channel) | D28: Control | E28: chlorophyll a | F28: 0.0063 | G28: 0.0184 | H28: 5.127223517 | I28: 0.01
A29: 2009-09-09 | B29: 293.5 | C29: 3 (mid-channel) | D29: Nitrogen | E29: chlorophyll a | F29: 0.0066 | G29: 9.5962 | H29: 4.444703504 | I29: 0.009
A30: 2009-09-09 | B30: 293.5 | C30: 3 (mid-channel) | D30: Phosphorus | E30: chlorophyll a | F30: 7.8123 | G30: 0.012 | H30: 11.5861934 | I30: 0.024
A31: 2009-09-09 | B31: 293.5 | C31: 3 (mid-channel) | D31: Nitrogen and phosphorus | E31: chlorophyll a | F31: 7.2068 | G31: 6.282 | H31: 17.61234572 | I31: 0.036
A32: 2009-09-09 | B32: 293.5 | C32: 3 (mid-channel) | D32: Control | E32: Ash free dry mass | F32: 0.0053 | G32: 0.0374 | J32: 0.5 | K32: 0.001
A33: 2009-09-09 | B33: 293.5 | C33: 3 (mid-channel) | D33: Nitrogen | E33: Ash free dry mass | F33: 0.0061 | G33: 6.7628 | J33: 0.6 | K33: 0.001
A34: 2009-09-09 | B34: 293.5 | C34: 3 (mid-channel) | D34: Phosphorus | E34: Ash free dry mass | F34: 7.4064 | G34: 0.0086 | J34: 0.7 | K34: 0.001
A35: 2009-09-09 | B35: 293.5 | C35: 3 (mid-channel) | D35: Nitrogen and phosphorus | E35: Ash free dry mass | F35: 7.1003 | G35: 6.8149 | J35: 0.6 | K35: 0.001
A36: 2009-09-09 | B36: 293.5 | C36: 3 (mid-channel) | D36: Control | E36: TAXA | F36: 0.0091 | G36: 0.0282
A37: 2009-09-09 | B37: 293.5 | C37: 3 (mid-channel) | D37: Nitrogen | E37: TAXA | F37: 0.0074 | G37: 7.0143
A38: 2009-09-09 | B38: 293.5 | C38: 3 (mid-channel) | D38: Phosphorus | E38: TAXA | F38: 6.8607 | G38: 0.0057
A39: 2009-09-09 | B39: 293.5 | C39: 3 (mid-channel) | D39: Nitrogen and phosphorus | E39: TAXA | F39: 7.1635 | G39: 6.6366

Sheet Middle
A1: Appendix 2: Location of algal rock scrape results for area, chlorophyll a, and ash free dry mass data, and nutrients in the upper, middle, and lower portions of the Delaware River, 2009
A2: [mg/L, milligrams per liter; μg, micrograms; μg/mm2, micrograms per square millimeter; filter area is 490mm2]
A3: Date | B3: River mile | C3: Array location | D3: Treatment | E3: Sample type | F3: Soluble reactive phosphorus (mg/L) | G3: Nitrate and nitrite as nitrogen (mg/L) | H3: Chlorophyll a (μg/filter) | I3: Chlorophyll a (μg/mm2) | J3: Ash free dry mass (μg/filter) | K3: Ash free dry mass (μg/mm2)
A4: 2009-09-22 | B4: 233.6 | C4: 1 (downstream) | D4: Control | E4: chlorophyll a | F4: 0.0047 | G4: 0.0042 | H4: 2.985409596 | I4: 0.006
A5: 2009-09-22 | B5: 233.6 | C5: 1 (downstream) | D5: Nitrogen | E5: chlorophyll a | F5: 0.0058 | G5: 8.2412 | H5: 2.937813731 | I5: 0.006
A6: 2009-09-22 | B6: 233.6 | C6: 1 (downstream) | D6: Phosphorus | E6: chlorophyll a | F6: 7.039 | G6: 0.0042 | H6: 12.95428144 | I6: 0.026
A7: 2009-09-22 | B7: 233.6 | C7: 1 (downstream) | D7: Nitrogen and Phosphorus | E7: chlorophyll a | F7: NA | G7: NA | H7: NA | J7: NA
A8: 2009-09-22 | B8: 233.6 | C8: 1 (downstream) | D8: Control | E8: Ash free dry mass | F8: 0.0035 | G8: 0.0042 | J8: 1.1 | K8: 0.002
A9: 2009-09-22 | B9: 233.6 | C9: 1 (downstream) | D9: Nitrogen | E9: Ash free dry mass | F9: 0.0044 | G9: 6.595 | J9: 0.8 | K9: 0.002
A10: 2009-09-22 | B10: 233.6 | C10: 1 (downstream) | D10: Phosphorus | E10: Ash free dry mass | F10: 8.559 | G10: 0.0042 | J10: 1 | K10: 0.002
A11: 2009-09-22 | B11: 233.6 | C11: 1 (downstream) | D11: Nitrogen and Phosphorus | E11: Ash free dry mass | F11: 6.5459 | G11: 7.4899 | J11: 1.4 | K11: 0.003
A12: 2009-09-22 | B12: 233.6 | C12: 1 (downstream) | D12: Control | E12: TAXA | F12: 0.0039 | G12: 0.0042
A13: 2009-09-22 | B13: 233.6 | C13: 1 (downstream) | D13: Nitrogen | E13: TAXA | F13: 0.0059 | G13: 7.3112
A14: 2009-09-22 | B14: 233.6 | C14: 1 (downstream) | D14: Phosphorus | E14: TAXA | F14: 7.5658 | G14: 0.0042
A15: 2009-09-22 | B15: 233.6 | C15: 1 (downstream) | D15: Nitrogen and Phosphorus | E15: TAXA | F15: 4.824 | G15: 5.516
A16: 2009-09-22 | B16: 233.6 | C16: 2 (mid-transect) | D16: Control | E16: chlorophyll a | F16: 0.0026 | G16: 0.0042 | H16: 3.835570218 | I16: 0.008
A17: 2009-09-22 | B17: 233.6 | C17: 2 (mid-transect) | D17: Nitrogen | E17: chlorophyll a | F17: 0.0035 | G17: 7.2473 | H17: 5.279858532 | I17: 0.011
A18: 2009-09-22 | B18: 233.6 | C18: 2 (mid-transect) | D18: Phosphorus | E18: chlorophyll a | F18: 6.8935 | G18: 0.0042 | H18: 15.4062891 | I18: 0.031
A19: 2009-09-22 | B19: 233.6 | C19: 2 (mid-transect) | D19: Nitrogen and Phosphorus | E19: chlorophyll a | F19: 4.5094 | G19: 4.6501 | H19: 10.09524707 | I19: 0.021
A20: 2009-09-22 | B20: 233.6 | C20: 2 (mid-transect) | D20: Control | E20: Ash free dry mass | F20: 0.0039 | G20: 0.0042 | J20: 0.6 | K20: 0.001
A21: 2009-09-22 | B21: 233.6 | C21: 2 (mid-transect) | D21: Nitrogen | E21: Ash free dry mass | F21: 0.0046 | G21: 6.6667 | J21: 1.2 | K21: 0.002
A22: 2009-09-22 | B22: 233.6 | C22: 2 (mid-transect) | D22: Phosphorus | E22: Ash free dry mass | F22: 8.0956 | G22: 0.0042 | J22: 1.5 | K22: 0.003
A23: 2009-09-22 | B23: 233.6 | C23: 2 (mid-transect) | D23: Nitrogen and Phosphorus | E23: Ash free dry mass | F23: 5.5094 | G23: 5.884 | J23: 0.8 | K23: 0.002
A24: 2009-09-22 | B24: 233.6 | C24: 2 (mid-transect) | D24: Control | E24: TAXA | F24: 0.0045 | G24: 0.0042
A25: 2009-09-22 | B25: 233.6 | C25: 2 (mid-transect) | D25: Nitrogen | E25: TAXA | F25: 0.0061 | G25: 6.9406
A26: 2009-09-22 | B26: 233.6 | C26: 2 (mid-transect) | D26: Phosphorus | E26: TAXA | F26: 7.1253 | G26: 0.0042
A27: 2009-09-22 | B27: 233.6 | C27: 2 (mid-transect) | D27: Nitrogen and Phosphorus | E27: TAXA | F27: 5.1683 | G27: 5.3459
A28: 2009-09-22 | B28: 233.6 | C28: 3 (upstream) | D28: Control | E28: chlorophyll a | F28: 0.0039 | G28: 0.0042 | H28: 2.909912707 | I28: 0.006
A29: 2009-09-22 | B29: 233.6 | C29: 3 (upstream) | D29: Nitrogen | E29: chlorophyll a | F29: 0.0054 | G29: 6.7768 | H29: 7.648163121 | I29: 0.015
A30: 2009-09-22 | B30: 233.6 | C30: 3 (upstream) | D30: Phosphorus | E30: chlorophyll a | F30: 7.93 | G30: 0.0042 | H30: 6.210439753 | I30: 0.013
A31: 2009-09-22 | B31: 233.6 | C31: 3 (upstream) | D31: Nitrogen and Phosphorus | E31: chlorophyll a | F31: 5.622 | G31: 6.0767 | H31: 10.37589855 | I31: 0.021
A32: 2009-09-22 | B32: 233.6 | C32: 3 (upstream) | D32: Control | E32: Ash free dry mass | F32: 0.0044 | G32: 0.0042 | J32: 1.7 | K32: 0.003
A33: 2009-09-22 | B33: 233.6 | C33: 3 (upstream) | D33: Nitrogen | E33: Ash free dry mass | F33: 0.0065 | G33: 6.595 | J33: 0.7 | K33: 0.001
A34: 2009-09-22 | B34: 233.6 | C34: 3 (upstream) | D34: Phosphorus | E34: Ash free dry mass | F34: 8.4201 | G34: 0.0042 | J34: 0.9 | K34: 0.002
A35: 2009-09-22 | B35: 233.6 | C35: 3 (upstream) | D35: Nitrogen and Phosphorus | E35: Ash free dry mass | F35: 5.4829 | G35: 5.6215 | J35: 1.2 | K35: 0.002
A36: 2009-09-22 | B36: 233.6 | C36: 3 (upstream) | D36: Control | E36: TAXA | F36: 0.0042 | G36: 0.0042
A37: 2009-09-22 | B37: 233.6 | C37: 3 (upstream) | D37: Nitrogen | E37: TAXA | F37: 0.0055 | G37: 6.6462
A38: 2009-09-22 | B38: 233.6 | C38: 3 (upstream) | D38: Phosphorus | E38: TAXA | F38: 7.4234 | G38: 0.0042
A39: 2009-09-22 | B39: 233.6 | C39: 3 (upstream) | D39: Nitrogen and Phosphorus | E39: TAXA | F39: 5.271 | G39: 5.4967

Sheet Lower
A1: Appendix 2: Location of algal rock scrape results for area, chlorophyll a, and ash free dry mass data, and nutrients in the upper, middle, and lower sections of the Delaware River, 2009.
A2: [mg/L, milligrams per liter; μg, micrograms; μg/mm2, micrograms per square millimeter; filter area is 490mm2]
A3: Date | B3: River mile | C3: Array location | D3: Treatment | E3: Sample type | F3: Soluble reactive phosphorus (mg/L) | G3: Nitrate and nitrite as nitrogen (mg/L) | H3: Chlorophyll a (μg/filter) | I3: Chlorophyll a (μg/mm2) | J3: Ash free dry mass (μg/filter) | K3: Ash free dry mass (μg/mm2)
A4: 2009-09-23 | B4: 166.6 | C4: 1 (near island) | D4: Control | E4: chlorophyll a | F4: 0.0267 | G4: 0.3079 | H4: 5.604823403 | I4: 0.011
A5: 2009-09-23 | B5: 166.6 | C5: 1 (near island) | D5: Nitrogen | E5: chlorophyll a | F5: 0.0224 | G5: 9.9754 | H5: 6.338456218 | I5: 0.013
A6: 2009-09-23 | B6: 166.6 | C6: 1 (near island) | D6: Phosphorus | E6: chlorophyll a | F6: 7.3836 | G6: 0.4494 | H6: 6.239982014 | I6: 0.013
A7: 2009-09-23 | B7: 166.6 | C7: 1 (near island) | D7: Nitrogen and Phosphorus | E7: chlorophyll a | F7: 6.0458 | G7: 8.6374 | H7: 7.443008531 | I7: 0.015
A8: 2009-09-23 | B8: 166.6 | C8: 1 (near island) | D8: Control | E8: ash free dry mass | F8: 0.0292 | G8: 0.3672 | J8: 1.7 | K8: 0.003
A9: 2009-09-23 | B9: 166.6 | C9: 1 (near island) | D9: Nitrogen | E9: ash free dry mass | F9: 0.0265 | G9: 6.9764 | J9: 0.9 | K9: 0.002
A10: 2009-09-23 | B10: 166.6 | C10: 1 (near island) | D10: Phosphorus | E10: ash free dry mass | F10: 4.3968 | G10: 0.4767 | J10: 0.1 | K10: 0
A11: 2009-09-23 | B11: 166.6 | C11: 1 (near island) | D11: Nitrogen and Phosphorus | E11: ash free dry mass | F11: 3.9564 | G11: 7.0045 | J11: 0.6 | K11: 0.001
A12: 2009-09-23 | B12: 166.6 | C12: 1 (near island) | D12: Control | E12: TAXA | F12: 0.0236 | G12: 0.3016
A13: 2009-09-23 | B13: 166.6 | C13: 1 (near island) | D13: Nitrogen | E13: TAXA | F13: 0.0275 | G13: 9.6272
A14: 2009-09-23 | B14: 166.6 | C14: 1 (near island) | D14: Phosphorus | E14: TAXA | F14: 4.9995 | G14: 0.4767
A15: 2009-09-23 | B15: 166.6 | C15: 1 (near island) | D15: Nitrogen and Phosphorus | E15: TAXA | F15: 5.0359 | G15: 7.2141
A16: 2009-09-23 | B16: 166.6 | C16: 2 (mid-channel) | D16: Control | E16: chlorophyll a | F16: 0.0204 | G16: 0.4102 | H16: 5.974101665 | I16: 0.012
A17: 2009-09-23 | B17: 166.6 | C17: 2 (mid-channel) | D17: Nitrogen | E17: chlorophyll a | F17: 0.0231 | G17: 11.6759 | H17: 5.639289374 | I17: 0.012
A18: 2009-09-23 | B18: 166.6 | C18: 2 (mid-channel) | D18: Phosphorus | E18: chlorophyll a | F18: 6.377 | G18: 0.3913 | H18: 5.70165637 | I18: 0.012
A19: 2009-09-23 | B19: 166.6 | C19: 2 (mid-channel) | D19: Nitrogen and Phosphorus | E19: chlorophyll a | F19: 7.3969 | G19: 12.9504 | H19: 2.591512783 | I19: 0.005
A20: 2009-09-23 | B20: 166.6 | C20: 2 (mid-channel) | D20: Control | E20: ash free dry mass | F20: 0.0199 | G20: 0.3577 | J20: 1.3 | K20: 0.003
A21: 2009-09-23 | B21: 166.6 | C21: 2 (mid-channel) | D21: Nitrogen | E21: ash free dry mass | F21: 0.0256 | G21: 7.9384 | J21: 1.2 | K21: 0.002
A22: 2009-09-23 | B22: 166.6 | C22: 2 (mid-channel) | D22: Phosphorus | E22: ash free dry mass | F22: 5.1783 | G22: 0.3761 | J22: 1.3 | K22: 0.003
A23: 2009-09-23 | B23: 166.6 | C23: 2 (mid-channel) | D23: Nitrogen and Phosphorus | E23: ash free dry mass | F23: 6.3041 | G23: 9.0329 | J23: 2.1 | K23: 0.004
A24: 2009-09-23 | B24: 166.6 | C24: 2 (mid-channel) | D24: Control | E24: TAXA | F24: 0.0245 | G24: 0.3362
A25: 2009-09-23 | B25: 166.6 | C25: 2 (mid-channel) | D25: Nitrogen | E25: TAXA | F25: 0.0282 | G25: 8.3301
A26: 2009-09-23 | B26: 166.6 | C26: 2 (mid-channel) | D26: Phosphorus | E26: TAXA | F26: 4.6485 | G26: 0.3997
A27: 2009-09-23 | B27: 166.6 | C27: 2 (mid-channel) | D27: Nitrogen and Phosphorus | E27: TAXA | F27: 4.2875 | G27: 7.9486
A28: 2009-09-23 | B28: 166.6 | C28: 3 (near Pa. shore) | D28: Control | E28: chlorophyll a | F28: 0.196 | G28: 0.2979 | H28: 7.569383759 | I28: 0.015
A29: 2009-09-23 | B29: 166.6 | C29: 3 (near Pa. shore) | D29: Nitrogen | E29: chlorophyll a | F29: 0.0262 | G29: 9.4225 | H29: 13.55497408 | I29: 0.028
A30: 2009-09-23 | B30: 166.6 | C30: 3 (near Pa. shore) | D30: Phosphorus | E30: chlorophyll a | F30: 7.4763 | G30: 0.3724 | H30: 4.945046241 | I30: 0.01
A31: 2009-09-23 | B31: 166.6 | C31: 3 (near Pa. shore) | D31: Nitrogen and Phosphorus | E31: chlorophyll a | F31: 5.2048 | G31: 8.711 | H31: 9.453523515 | I31: 0.019
A32: 2009-09-23 | B32: 166.6 | C32: 3 (near Pa. shore) | D32: Control | E32: ash free dry mass | F32: 0.0235 | G32: 0.384 | J32: 1.8 | K32: 0.004
A33: 2009-09-23 | B33: 166.6 | C33: 3 (near Pa. shore) | D33: Nitrogen | E33: ash free dry mass | F33: 0.0278 | G33: 8.5942 | J33: 1.4 | K33: 0.003
A34: 2009-09-23 | B34: 166.6 | C34: 3 (near Pa. shore) | D34: Phosphorus | E34: ash free dry mass | F34: 6.1949 | G34: 0.4144 | J34: 0.8 | K34: 0.002
A35: 2009-09-23 | B35: 166.6 | C35: 3 (near Pa. shore) | D35: Nitrogen and Phosphorus | E35: ash free dry mass | F35: 5.2743 | G35: 6.8664 | J35: 1.1 | K35: 0.002
A36: 2009-09-23 | B36: 166.6 | C36: 3 (near Pa. shore) | D36: Control | E36: TAXA | F36: 0.022 | G36: 0.2579
A37: 2009-09-23 | B37: 166.6 | C37: 3 (near Pa. shore) | D37: Nitrogen | E37: TAXA | F37: 0.0256 | G37: 7.5664
A38: 2009-09-23 | B38: 166.6 | C38: 3 (near Pa. shore) | D38: Phosphorus | E38: TAXA | F38: 6.1054 | G38: 0.4133
A39: 2009-09-23 | B39: 166.6 | C39: 3 (near Pa. shore) | D39: Nitrogen and Phosphorus | E39: TAXA | F39: 5.7578 | G39: 7.6607
